{"text_format":"3","workbook":"xlsx","n_sheets":2,"sheets":["Tabelle1","Tabelle2"],"not_rendered":{"images":1,"macros":1,"defined_names":11},"read":"whole","date_system":"1900"}

{"sheet":"Tabelle1","index":0,"n_rows":19,"n_cols":7,"rows_kept":19,"merged":[[0,0,0,6],[15,2,15,3],[15,5,15,6],[18,0,18,6]]}
["Wahl der  Abiturprüfungsfächer am Beruflichen Oberstufengymnasium des BBZ Merzig"]
[null,"",""]
["Vorname","Nachname","Geburtsdatum","Klasse"]
[" "," "," "," "]
[]
["1. E-Kurs","2. E-Kurs ","1. G-Kurs","2. G-Kurs"]
[" "," "," "," "]
[]
["Neigungsfach","Naturwissenschaft","Kunst","Religionslehre",null,"Sport","Gesellschaftswissenschaft"]
[" "," "," "," ",null," "," "]
[{"$nulls":5},"Ersatz","Seminarfächer"]
[{"$nulls":5}," "," "]
[{"$nulls":6}," "]
[{"$nulls":6}," "]
[]
["Datum:",{"$f":"TODAY()","v":"2018-05-13"},"(Unterschrift Schüler/in)",null,null,"(Unterschrift Erziehungsberechtigter)"]
[]
[]
["Hinweis: Bitte geben Sie dieses Formular unterschrieben bis spätestens Mittwoch, den 23.05.2018 um 11:30 Uhr im Sekretariat ab.\nAußerdem speichern Sie bitte die Datei ab und senden Sie sie an folgende E-Mail Adresse: mail@bbz-merzig.de."]

{"sheet":"Tabelle2","index":1,"n_rows":66,"n_cols":2,"rows_kept":66}
["E-Kurs 1"]
["BWL",{"$f":"COUNTIF(Tabelle1!$A$7,Tabelle2!A2)","v":0}]
["Pädagogik",{"$f":"COUNTIF(Tabelle1!$A$7,Tabelle2!A3)","v":0}]
["Gesundheit",{"$f":"COUNTIF(Tabelle1!$A$7,Tabelle2!A4)","v":0}]
[]
["E-Kurs 2"]
["Deutsch",{"$f":"COUNTIF(Tabelle1!$B$7,Tabelle2!A7)","v":0}]
["Mathematik",{"$f":"COUNTIF(Tabelle1!$B$7,Tabelle2!A8)","v":0}]
["Englisch",{"$f":"COUNTIF(Tabelle1!$B$7,Tabelle2!A9)","v":0}]
["Französisch",{"$f":"COUNTIF(Tabelle1!$B$7,Tabelle2!A10)","v":0}]
[]
["G-Kurs 1"]
["Mathematik",{"$f":"COUNTIF(Tabelle1!$C$7,Tabelle2!A13)","v":0}]
["Englisch",{"$f":"COUNTIF(Tabelle1!$C$7,Tabelle2!A14)","v":0}]
["Französisch",{"$f":"COUNTIF(Tabelle1!$C$7,Tabelle2!A15)","v":0}]
["Französisch Anfänger",{"$f":"COUNTIF(Tabelle1!$C$7,Tabelle2!A16)","v":0}]
["Spanisch Anfänger",{"$f":"COUNTIF(Tabelle1!$C$7,Tabelle2!A17)","v":0}]
["Deutsch",{"$f":"COUNTIF(Tabelle1!$C$7,Tabelle2!A18)","v":0}]
[]
["G-Kurs 2"]
["Englisch",{"$f":"COUNTIF(Tabelle1!$D$7,Tabelle2!A21)","v":0}]
["Französisch",{"$f":"COUNTIF(Tabelle1!$D$7,Tabelle2!A22)","v":0}]
["Französisch Anfänger",{"$f":"COUNTIF(Tabelle1!$D$7,Tabelle2!A23)","v":0}]
["Spanisch Anfänger",{"$f":"COUNTIF(Tabelle1!$D$7,Tabelle2!A24)","v":0}]
["Mathematik",{"$f":"COUNTIF(Tabelle1!$D$7,Tabelle2!A25)","v":0}]
["Deutsch",{"$f":"COUNTIF(Tabelle1!$D$7,Tabelle2!A26)","v":0}]
[]
["Neigungsfach"]
["Englisch",{"$f":"COUNTIF(Tabelle1!$A$10,Tabelle2!A29)","v":0}]
["Gesundheit",{"$f":"COUNTIF(Tabelle1!$A$10,Tabelle2!A30)","v":0}]
["Informatik",{"$f":"COUNTIF(Tabelle1!$A$10,Tabelle2!A31)","v":0}]
["Französisch",{"$f":"COUNTIF(Tabelle1!$A$10,Tabelle2!A32)","v":0}]
["Französisch Anfänger",{"$f":"COUNTIF(Tabelle1!$A$10,Tabelle2!A33)","v":0}]
["Spanisch Anfänger",{"$f":"COUNTIF(Tabelle1!$A$10,Tabelle2!A34)","v":0}]
["VWL",{"$f":"COUNTIF(Tabelle1!$A$10,Tabelle2!A35)","v":0}]
["Pädagogik",{"$f":"COUNTIF(Tabelle1!$A$10,Tabelle2!A36)","v":0}]
["Naturwissenschaften"]
["Biologie",{"$f":"COUNTIF(Tabelle1!$B$10,Tabelle2!A38)","v":0}]
["Chemie",{"$f":"COUNTIF(Tabelle1!$B$10,Tabelle2!A39)","v":0}]
["Physik",{"$f":"COUNTIF(Tabelle1!$B$10,Tabelle2!A40)","v":0}]
[]
["Kunst"]
["Bildende Kunst",{"$f":"COUNTIF(Tabelle1!$C$10,Tabelle2!A43)","v":0}]
["Musik",{"$f":"COUNTIF(Tabelle1!$C$10,Tabelle2!A44)","v":0}]
[]
["Religion"]
["Katholische Religion",{"$f":"COUNTIF(Tabelle1!$D$10,Tabelle2!A47)","v":0}]
["Ethik",{"$f":"COUNTIF(Tabelle1!$D$10,Tabelle2!A48)","v":0}]
[]
["Sport"]
[1,{"$f":"COUNTIF(Tabelle1!$F$10,Tabelle2!A51:A53)","v":0}]
[2,{"$f":"COUNTIF(Tabelle1!$F$10,Tabelle2!A52:A54)","v":0}]
[3,{"$f":"COUNTIF(Tabelle1!$F$10,Tabelle2!A53:A55)","v":0}]
[]
["Ersatz"]
[1,{"$f":"COUNTIF(Tabelle1!$F$12,Tabelle2!A56)","v":0}]
[2,{"$f":"COUNTIF(Tabelle1!$F$12,Tabelle2!A57)","v":0}]
[3,{"$f":"COUNTIF(Tabelle1!$F$12,Tabelle2!A58)","v":0}]
[]
["Gesellschaft"]
["Geschichte",{"$f":"COUNTIF(Tabelle1!$G$10,Tabelle2!A61)","v":0}]
[]
["Seminar"]
["Gesunder Geist im gesunden Körper",{"$f":"COUNTIF(Tabelle1!G12,Tabelle2!A64)","v":0}]
["Faszination Festivals",{"$f":"COUNTIF(Tabelle1!G13,Tabelle2!A65)","v":0}]
["Traumdeutung",{"$f":"COUNTIF(Tabelle1!G14,Tabelle2!A66)","v":0}]